[Event "Titled Tuesday Blitz February 14 Early 2023"]
[White "Melian, Juan Sebastian"]
[Black "Harsh Suresh"]
[WhiteFideId "3706575"]
[BlackFideId "45018464"]
[WhiteElo "2293"]
[BlackElo "2298"]
[Result "0-1"]
[Round "08"]
[TimeControl "180+2"]
[Date "2023.02.14"]
[WhiteClock "0:00:24"]
[BlackClock "0:00:05"]

1. d4 {[%clk 0:03:00]}  g6 {[%clk 0:02:57]} 2. c4 {[%clk 0:03:00]}  Bg7 {[%clk 0:02:57]} 3. Nc3 {[%clk 0:03:01]}  d6 {[%clk 0:02:56]} 4. e4 {[%clk 0:03:01]}  e5 {[%clk 0:02:52]} 5. Nge2 {[%clk 0:03:01]}  Nc6 {[%clk 0:02:52]} 6. Be3 {[%clk 0:03:01]}  exd4 {[%clk 0:02:39]} 7. Nxd4 {[%clk 0:03:02]}  Nge7 {[%clk 0:02:40]} 8. Be2 {[%clk 0:03:01]}  O-O {[%clk 0:02:40]} 9. O-O {[%clk 0:03:01]}  Nxd4 {[%clk 0:02:40]} 10. Bxd4 {[%clk 0:03:01]}  Bxd4 {[%clk 0:02:39]} 11. Qxd4 {[%clk 0:03:02]}  Nc6 {[%clk 0:02:39]} 12. Qd2 {[%clk 0:02:58]}  Be6 {[%clk 0:02:40]} 13. Rac1 {[%clk 0:02:46]}  Re8 {[%clk 0:02:39]} 14. f4 {[%clk 0:02:40]}  f6 {[%clk 0:01:20]} 15. Bd3 {[%clk 0:02:08]}  Bf7 {[%clk 0:01:15]} 16. Rce1 {[%clk 0:02:03]}  Qd7 {[%clk 0:01:13]} 17. Nd5 {[%clk 0:01:52]}  Kg7 {[%clk 0:01:07]} 18. Qc3 {[%clk 0:01:40]}  Bxd5 {[%clk 0:00:27]} 19. cxd5 {[%clk 0:01:32]}  Ne7 {[%clk 0:00:28]} 20. Bc4 {[%clk 0:01:29]}  c6 {[%clk 0:00:23]} 21. e5 {[%clk 0:01:29]}  Nxd5 {[%clk 0:00:20]} 22. Bxd5 {[%clk 0:01:27]}  cxd5 {[%clk 0:00:20]} 23. exf6+ {[%clk 0:01:28]}  Kf7 {[%clk 0:00:21]} 24. Qd4 {[%clk 0:01:27]}  Qc6 {[%clk 0:00:19]} 25. Kh1 {[%clk 0:01:21]}  Qc5 {[%clk 0:00:18]} 26. Qa4 {[%clk 0:01:05]}  b5 {[%clk 0:00:17]} 27. Qa6 {[%clk 0:01:00]}  Rxe1 {[%clk 0:00:10]} 28. Qb7+ {[%clk 0:00:57]}  Kxf6 {[%clk 0:00:11]} 29. Rxe1 {[%clk 0:00:57]}  Re8 {[%clk 0:00:11]} 30. Rg1 {[%clk 0:00:43]}  Re7 {[%clk 0:00:11]} 31. Qb8 {[%clk 0:00:41]}  Kg7 {[%clk 0:00:12]} 32. h3 {[%clk 0:00:35]}  Rf7 {[%clk 0:00:11]} 33. Rf1 {[%clk 0:00:34]}  Qc4 {[%clk 0:00:11]} 34. Re1 {[%clk 0:00:31]}  Qxf4 {[%clk 0:00:11]} 35. Qxb5 {[%clk 0:00:29]}  d4 {[%clk 0:00:10]} 36. Qd5 {[%clk 0:00:25]}  h5 {[%clk 0:00:08]} 37. Rd1 {[%clk 0:00:24]}  Qe5 {[%clk 0:00:06]} 38. Qxd4 {[%clk 0:00:24]}  Rf1+ {[%clk 0:00:05]} 0-1


[Site "https://www.chess.com"]

[Event "Titled Tuesday Blitz February 14 Early 2023"]
[White "Lortkipanidze, Nodar"]
[Black "Donskov, Anatoly"]
[WhiteFideId "13604058"]
[BlackFideId "24143413"]
[WhiteElo "2406"]
[BlackElo "2279"]
[Result "1-0"]
[Round "08"]
[TimeControl "180+2"]
[Date "2023.02.14"]
[WhiteClock "0:01:20"]
[BlackClock "0:00:37"]

1. e4 {[%clk 0:03:00]}  c5 {[%clk 0:02:59]} 2. c3 {[%clk 0:03:00]}  d5 {[%clk 0:02:59]} 3. exd5 {[%clk 0:02:59]}  Qxd5 {[%clk 0:03:00]} 4. d4 {[%clk 0:03:00]}  Nf6 {[%clk 0:03:00]} 5. Nf3 {[%clk 0:03:01]}  e6 {[%clk 0:03:00]} 6. Bd3 {[%clk 0:03:00]}  Be7 {[%clk 0:02:59]} 7. O-O {[%clk 0:03:00]}  cxd4 {[%clk 0:02:59]} 8. cxd4 {[%clk 0:03:00]}  O-O {[%clk 0:02:59]} 9. Nc3 {[%clk 0:03:01]}  Qd6 {[%clk 0:02:59]} 10. Bg5 {[%clk 0:03:01]}  Nc6 {[%clk 0:02:54]} 11. Rc1 {[%clk 0:03:00]}  b6 {[%clk 0:02:44]} 12. Nb5 {[%clk 0:02:38]}  Qd7 {[%clk 0:02:41]} 13. Bxf6 {[%clk 0:02:14]}  Bxf6 {[%clk 0:02:40]} 14. Be4 {[%clk 0:02:06]}  Bb7 {[%clk 0:02:37]} 15. d5 {[%clk 0:01:46]}  Nd8 {[%clk 0:01:53]} 16. Qd3 {[%clk 0:01:31]}  g6 {[%clk 0:01:28]} 17. Rc7 {[%clk 0:01:26]}  Qe8 {[%clk 0:01:02]} 18. Nd6 {[%clk 0:01:24]}  Qa4 {[%clk 0:00:43]} 19. Nxb7 {[%clk 0:01:24]}  Nxb7 {[%clk 0:00:42]} 20. Rxb7 {[%clk 0:01:24]}  exd5 {[%clk 0:00:41]} 21. Bxd5 {[%clk 0:01:22]}  Rad8 {[%clk 0:00:41]} 22. Qb3 {[%clk 0:01:22]}  Qa6 {[%clk 0:00:37]} 23. Rxf7 {[%clk 0:01:20]} 1-0


[Site "https://www.chess.com"]

[Event "Titled Tuesday Blitz February 14 Early 2023"]
[White "Ibarra Jerez, Jose Carlos"]
[Black "Taspinar, Yanki"]
[WhiteFideId "2226332"]
[BlackFideId "34561188"]
[WhiteElo "2563"]
[BlackElo "2262"]
[Result "1-0"]
[Round "08"]
[TimeControl "180+2"]
[Date "2023.02.14"]
[WhiteClock "0:00:21"]
[BlackClock "0:00:03"]

1. Nf3 {[%clk 0:03:00]}  Nf6 {[%clk 0:02:59]} 2. g3 {[%clk 0:03:01]}  g6 {[%clk 0:02:59]} 3. b3 {[%clk 0:03:01]}  Bg7 {[%clk 0:03:00]} 4. Bb2 {[%clk 0:03:02]}  O-O {[%clk 0:03:00]} 5. Bg2 {[%clk 0:03:03]}  b6 {[%clk 0:03:00]} 6. Ne5 {[%clk 0:03:00]}  d5 {[%clk 0:03:00]} 7. c4 {[%clk 0:03:00]}  Bb7 {[%clk 0:02:59]} 8. O-O {[%clk 0:03:01]}  c5 {[%clk 0:02:58]} 9. d4 {[%clk 0:02:54]}  cxd4 {[%clk 0:02:08]} 10. Qxd4 {[%clk 0:02:44]}  Nbd7 {[%clk 0:01:12]} 11. Nxd7 {[%clk 0:02:32]}  Qxd7 {[%clk 0:01:12]} 12. Rd1 {[%clk 0:02:26]}  Rfd8 {[%clk 0:01:03]} 13. Qf4 {[%clk 0:01:41]}  Nh5 {[%clk 0:00:13]} 14. Qc1 {[%clk 0:01:40]}  Rac8 {[%clk 0:00:09]} 15. Bxg7 {[%clk 0:01:36]}  Nxg7 {[%clk 0:00:10]} 16. Nc3 {[%clk 0:01:36]}  d4 {[%clk 0:00:07]} 17. Bxb7 {[%clk 0:01:28]}  Qxb7 {[%clk 0:00:08]} 18. Nd5 {[%clk 0:01:28]}  Nf5 {[%clk 0:00:04]} 19. Qf4 {[%clk 0:01:18]}  f6 {[%clk 0:00:02]} 20. g4 {[%clk 0:01:09]}  Ng7 {[%clk 0:00:03]} 21. Qxd4 {[%clk 0:01:08]}  Kh8 {[%clk 0:00:02]} 22. Qe3 {[%clk 0:01:04]}  Rd7 {[%clk 0:00:02]} 23. Rd3 {[%clk 0:01:00]}  Rcd8 {[%clk 0:00:02]} 24. Rad1 {[%clk 0:01:00]}  Qc6 {[%clk 0:00:01]} 25. Nxe7 {[%clk 0:00:59]}  Rxd3 {[%clk 0:00:01]} 26. Rxd3 {[%clk 0:00:55]}  Qe8 {[%clk 0:00:02]} 27. Rxd8 {[%clk 0:00:51]}  Qxd8 {[%clk 0:00:03]} 28. Nd5 {[%clk 0:00:51]}  f5 {[%clk 0:00:03]} 29. g5 {[%clk 0:00:50]}  Kg8 {[%clk 0:00:01]} 30. f4 {[%clk 0:00:47]}  Kf7 {[%clk 0:00:01]} 31. Qe5 {[%clk 0:00:47]}  Nh5 {[%clk 0:00:02]} 32. Kf2 {[%clk 0:00:45]}  Qd7 {[%clk 0:00:02]} 33. e3 {[%clk 0:00:45]}  b5 {[%clk 0:00:02]} 34. c5 {[%clk 0:00:40]}  a5 {[%clk 0:00:01]} 35. a3 {[%clk 0:00:40]}  a4 {[%clk 0:00:01]} 36. b4 {[%clk 0:00:40]}  h6 {[%clk 0:00:02]} 37. gxh6 {[%clk 0:00:40]}  Kg8 {[%clk 0:00:03]} 38. c6 {[%clk 0:00:31]}  Qd8 {[%clk 0:00:03]} 39. c7 {[%clk 0:00:31]}  Qh4+ {[%clk 0:00:03]} 40. Ke2 {[%clk 0:00:25]}  Qg4+ {[%clk 0:00:03]} 41. Kd2 {[%clk 0:00:22]}  Qg2+ {[%clk 0:00:04]} 42. Kc3 {[%clk 0:00:22]}  Qf1 {[%clk 0:00:04]} 43. c8=Q+ {[%clk 0:00:21]}  Kh7 {[%clk 0:00:03]} 44. Qch8# {[%clk 0:00:21]} 1-0


[Site "https://www.chess.com"]

[Event "Titled Tuesday Blitz February 14 Early 2023"]
[White "Remizov, Yaroslav"]
[Black "Skvortsov, Andrei"]
[WhiteFideId "34134015"]
[BlackFideId "24108600"]
[WhiteElo "2421"]
[BlackElo "2313"]
[Result "1-0"]
[Round "08"]
[TimeControl "180+2"]
[Date "2023.02.14"]
[WhiteClock "0:00:03"]
[BlackClock "0:00:15"]

1. e4 {[%clk 0:03:00]}  d5 {[%clk 0:02:58]} 2. exd5 {[%clk 0:02:59]}  Qxd5 {[%clk 0:02:59]} 3. Nc3 {[%clk 0:03:00]}  Qe5+ {[%clk 0:02:59]} 4. Be2 {[%clk 0:02:55]}  Bg4 {[%clk 0:02:59]} 5. f3 {[%clk 0:02:51]}  Bd7 {[%clk 0:02:57]} 6. d4 {[%clk 0:02:50]}  Qa5 {[%clk 0:02:58]} 7. Bd2 {[%clk 0:02:38]}  Nf6 {[%clk 0:02:53]} 8. Bc4 {[%clk 0:02:20]}  Qb6 {[%clk 0:02:37]} 9. Nge2 {[%clk 0:02:18]}  Nc6 {[%clk 0:02:28]} 10. Na4 {[%clk 0:02:14]}  Qxd4 {[%clk 0:01:55]} 11. Nxd4 {[%clk 0:02:13]}  Nxd4 {[%clk 0:01:56]} 12. Be3 {[%clk 0:02:09]}  Nf5 {[%clk 0:01:54]} 13. Bg5 {[%clk 0:01:35]}  Bxa4 {[%clk 0:01:52]} 14. Qd3 {[%clk 0:01:35]}  Nd6 {[%clk 0:01:48]} 15. Bxf6 {[%clk 0:01:33]}  gxf6 {[%clk 0:01:47]} 16. O-O {[%clk 0:01:33]}  e6 {[%clk 0:01:28]} 17. Bb3 {[%clk 0:01:18]}  Bc6 {[%clk 0:01:25]} 18. Rad1 {[%clk 0:01:16]}  Bg7 {[%clk 0:01:15]} 19. Rfe1 {[%clk 0:01:05]}  O-O-O {[%clk 0:01:05]} 20. Qe3 {[%clk 0:01:01]}  Kb8 {[%clk 0:01:03]} 21. c3 {[%clk 0:00:57]}  h6 {[%clk 0:01:02]} 22. Bc2 {[%clk 0:00:57]}  f5 {[%clk 0:01:02]} 23. a4 {[%clk 0:00:49]}  Bf6 {[%clk 0:01:01]} 24. b4 {[%clk 0:00:47]}  b6 {[%clk 0:00:40]} 25. Bd3 {[%clk 0:00:35]}  Bxc3 {[%clk 0:00:32]} 26. b5 {[%clk 0:00:18]}  Bb7 {[%clk 0:00:28]} 27. Re2 {[%clk 0:00:18]}  Nxb5 {[%clk 0:00:24]} 28. Qc1 {[%clk 0:00:04]}  Bd4+ {[%clk 0:00:23]} 29. Kf1 {[%clk 0:00:04]}  Nc3 {[%clk 0:00:23]} 30. Red2 {[%clk 0:00:03]}  Nxd1 {[%clk 0:00:24]} 31. Rxd1 {[%clk 0:00:04]}  Bc5 {[%clk 0:00:21]} 32. Bb5 {[%clk 0:00:04]}  Bd5 {[%clk 0:00:20]} 33. g3 {[%clk 0:00:02]}  a5 {[%clk 0:00:20]} 34. Kg2 {[%clk 0:00:03]}  h5 {[%clk 0:00:20]} 35. h4 {[%clk 0:00:02]}  Rhg8 {[%clk 0:00:19]} 36. Be2 {[%clk 0:00:02]}  Bd6 {[%clk 0:00:18]} 37. Kf1 {[%clk 0:00:02]}  Bxg3 {[%clk 0:00:17]} 38. Ba6 {[%clk 0:00:02]}  Bd6 {[%clk 0:00:17]} 39. Rxd5 {[%clk 0:00:02]}  Bc5 {[%clk 0:00:17]} 40. Rxc5 {[%clk 0:00:02]}  bxc5 {[%clk 0:00:16]} 41. Qb2+ {[%clk 0:00:02]}  Ka7 {[%clk 0:00:15]} 42. Qb7# {[%clk 0:00:03]} 1-0


[Site "https://www.chess.com"]

[Event "Titled Tuesday Blitz February 14 Early 2023"]
[White "Seo, Jung Min"]
[Black "Sadykov, Ramil"]
[WhiteFideId "1734687"]
[BlackFideId "24113590"]
[WhiteElo "2494"]
[BlackElo "2345"]
[Result "1-0"]
[Round "08"]
[TimeControl "180+2"]
[Date "2023.02.14"]
[WhiteClock "0:02:28"]
[BlackClock "0:00:59"]

1. d4 {[%clk 0:03:00]}  d5 {[%clk 0:02:57]} 2. c4 {[%clk 0:03:00]}  e6 {[%clk 0:02:55]} 3. Nc3 {[%clk 0:03:00]}  Nf6 {[%clk 0:02:55]} 4. Nf3 {[%clk 0:03:00]}  Be7 {[%clk 0:02:51]} 5. Bf4 {[%clk 0:03:00]}  O-O {[%clk 0:02:49]} 6. e3 {[%clk 0:03:00]}  a6 {[%clk 0:02:46]} 7. cxd5 {[%clk 0:02:58]}  exd5 {[%clk 0:02:46]} 8. Bd3 {[%clk 0:02:57]}  c6 {[%clk 0:02:41]} 9. h3 {[%clk 0:02:56]}  Re8 {[%clk 0:02:37]} 10. O-O {[%clk 0:02:56]}  Nbd7 {[%clk 0:02:31]} 11. Bh2 {[%clk 0:02:51]}  Nf8 {[%clk 0:02:29]} 12. Ne5 {[%clk 0:02:50]}  N6d7 {[%clk 0:02:12]} 13. Nf3 {[%clk 0:02:50]}  Ne6 {[%clk 0:02:04]} 14. Qc2 {[%clk 0:02:48]}  g6 {[%clk 0:02:01]} 15. Rfe1 {[%clk 0:02:48]}  Nf6 {[%clk 0:01:55]} 16. Ne5 {[%clk 0:02:47]}  Ng7 {[%clk 0:01:55]} 17. g4 {[%clk 0:02:42]}  Nd7 {[%clk 0:01:49]} 18. f4 {[%clk 0:02:39]}  Nxe5 {[%clk 0:01:34]} 19. dxe5 {[%clk 0:02:39]}  h5 {[%clk 0:01:29]} 20. Qg2 {[%clk 0:02:35]}  d4 {[%clk 0:01:25]} 21. Ne4 {[%clk 0:02:35]}  dxe3 {[%clk 0:01:19]} 22. Rad1 {[%clk 0:02:34]}  Qb6 {[%clk 0:01:16]} 23. Kh1 {[%clk 0:02:32]}  Be6 {[%clk 0:01:13]} 24. f5 {[%clk 0:02:28]}  gxf5 {[%clk 0:01:02]} 25. gxf5 {[%clk 0:02:28]}  Bxf5 {[%clk 0:00:59]} 26. Nf6+ {[%clk 0:02:28]}  Bxf6 {[%clk 0:00:59]} 27. exf6 {[%clk 0:02:28]} 1-0


[Site "https://www.chess.com"]

[Event "Titled Tuesday Blitz February 14 Early 2023"]
[White "Martynov, Pavel"]
[Black "Zemlyanskii, Ivan"]
[WhiteFideId "4101260"]
[BlackFideId "24249971"]
[WhiteElo "2414"]
[BlackElo "2300"]
[Result "0-1"]
[Round "08"]
[TimeControl "180+2"]
[Date "2023.02.14"]
[WhiteClock "0:00:03"]
[BlackClock "0:00:04"]

1. e4 {[%clk 0:03:00]}  c5 {[%clk 0:03:00]} 2. Nf3 {[%clk 0:03:00]}  a6 {[%clk 0:02:51]} 3. Nc3 {[%clk 0:02:58]}  e6 {[%clk 0:02:49]} 4. g3 {[%clk 0:02:58]}  b5 {[%clk 0:02:48]} 5. Bg2 {[%clk 0:02:59]}  Bb7 {[%clk 0:02:44]} 6. d4 {[%clk 0:02:59]}  cxd4 {[%clk 0:02:41]} 7. Nxd4 {[%clk 0:03:00]}  Nf6 {[%clk 0:02:36]} 8. O-O {[%clk 0:03:00]}  b4 {[%clk 0:02:24]} 9. Na4 {[%clk 0:02:58]}  Bxe4 {[%clk 0:02:22]} 10. Bxe4 {[%clk 0:02:56]}  Nxe4 {[%clk 0:02:21]} 11. Re1 {[%clk 0:02:56]}  Nc5 {[%clk 0:02:20]} 12. c3 {[%clk 0:02:54]}  Nxa4 {[%clk 0:01:56]} 13. Qxa4 {[%clk 0:02:55]}  Bc5 {[%clk 0:01:56]} 14. Nxe6 {[%clk 0:02:21]}  fxe6 {[%clk 0:01:56]} 15. Rxe6+ {[%clk 0:02:22]}  Kf7 {[%clk 0:01:51]} 16. Re5 {[%clk 0:02:12]}  Be7 {[%clk 0:01:38]} 17. Qb3+ {[%clk 0:01:46]}  Kf8 {[%clk 0:01:34]} 18. Rf5+ {[%clk 0:01:32]}  Bf6 {[%clk 0:01:25]} 19. Bg5 {[%clk 0:01:33]}  Nc6 {[%clk 0:01:21]} 20. Re1 {[%clk 0:01:08]}  h6 {[%clk 0:01:00]} 21. Bf4 {[%clk 0:00:49]}  g6 {[%clk 0:00:32]} 22. Rd5 {[%clk 0:00:20]}  Kg7 {[%clk 0:00:32]} 23. cxb4 {[%clk 0:00:11]}  Re8 {[%clk 0:00:27]} 24. Red1 {[%clk 0:00:12]}  Ra7 {[%clk 0:00:25]} 25. a4 {[%clk 0:00:10]}  Re7 {[%clk 0:00:17]} 26. b5 {[%clk 0:00:10]}  axb5 {[%clk 0:00:17]} 27. axb5 {[%clk 0:00:11]}  Qb6 {[%clk 0:00:17]} 28. Qf3 {[%clk 0:00:06]}  Nd4 {[%clk 0:00:16]} 29. Qg4 {[%clk 0:00:03]}  Ne2+ {[%clk 0:00:15]} 30. Kg2 {[%clk 0:00:02]}  Nxf4+ {[%clk 0:00:16]} 31. gxf4 {[%clk 0:00:02]}  Qe6 {[%clk 0:00:14]} 32. f5 {[%clk 0:00:03]}  Qf7 {[%clk 0:00:10]} 33. h4 {[%clk 0:00:01]}  h5 {[%clk 0:00:10]} 34. Qg3 {[%clk 0:00:01]}  Ra4 {[%clk 0:00:09]} 35. fxg6 {[%clk 0:00:02]}  Qxg6 {[%clk 0:00:09]} 36. Qxg6+ {[%clk 0:00:02]}  Kxg6 {[%clk 0:00:10]} 37. Rxd7 {[%clk 0:00:03]}  Ree4 {[%clk 0:00:10]} 38. R7d6 {[%clk 0:00:03]}  Rg4+ {[%clk 0:00:10]} 39. Kf1 {[%clk 0:00:03]}  Rxh4 {[%clk 0:00:11]} 40. R1d3 {[%clk 0:00:03]}  Rhf4 {[%clk 0:00:11]} 41. Rg3+ {[%clk 0:00:03]}  Kf5 {[%clk 0:00:09]} 42. Rd5+ {[%clk 0:00:04]}  Ke6 {[%clk 0:00:08]} 43. Rxh5 {[%clk 0:00:03]}  Rab4 {[%clk 0:00:08]} 44. Rhh3 {[%clk 0:00:02]}  Rxb2 {[%clk 0:00:08]} 45. Rf3 {[%clk 0:00:02]}  Rxf3 {[%clk 0:00:09]} 46. Rxf3 {[%clk 0:00:03]}  Rxb5 {[%clk 0:00:10]} 47. Re3+ {[%clk 0:00:04]}  Be5 {[%clk 0:00:10]} 48. Kg2 {[%clk 0:00:04]}  Kf5 {[%clk 0:00:11]} 49. Rf3+ {[%clk 0:00:04]}  Bf4 {[%clk 0:00:11]} 50. Rd3 {[%clk 0:00:04]}  Kg4 {[%clk 0:00:12]} 51. Rd8 {[%clk 0:00:03]}  Rb2 {[%clk 0:00:12]} 52. Rg8+ {[%clk 0:00:03]}  Bg5 {[%clk 0:00:12]} 53. Rf8 {[%clk 0:00:03]}  Be7 {[%clk 0:00:11]} 54. Rf7 {[%clk 0:00:03]}  Bc5 {[%clk 0:00:12]} 55. Rf6 {[%clk 0:00:02]}  Bd4 {[%clk 0:00:10]} 56. Rf3 {[%clk 0:00:02]}  Be5 {[%clk 0:00:10]} 57. Rf8 {[%clk 0:00:02]}  Rb7 {[%clk 0:00:10]} 58. Rg8+ {[%clk 0:00:02]}  Kf5 {[%clk 0:00:10]} 59. Rf8+ {[%clk 0:00:02]}  Ke4 {[%clk 0:00:07]} 60. Rg8 {[%clk 0:00:02]}  Rf7 {[%clk 0:00:07]} 61. Rg4+ {[%clk 0:00:02]}  Kd3 {[%clk 0:00:07]} 62. Rg8 {[%clk 0:00:02]}  Bd4 {[%clk 0:00:07]} 63. f3 {[%clk 0:00:01]}  Ke2 {[%clk 0:00:08]} 64. Kg3 {[%clk 0:00:02]}  Be3 {[%clk 0:00:06]} 65. Kg4 {[%clk 0:00:03]}  Rxf3 {[%clk 0:00:07]} 66. Re8 {[%clk 0:00:03]}  Rf4+ {[%clk 0:00:07]} 67. Kg3 {[%clk 0:00:03]}  Ra4 {[%clk 0:00:08]} 68. Re7 {[%clk 0:00:02]}  Ra5 {[%clk 0:00:08]} 69. Re8 {[%clk 0:00:03]}  Rg5+ {[%clk 0:00:08]} 70. Kh4 {[%clk 0:00:03]}  Rg7 {[%clk 0:00:09]} 71. Kh5 {[%clk 0:00:04]}  Kf3 {[%clk 0:00:10]} 72. Rf8+ {[%clk 0:00:04]}  Bf4 {[%clk 0:00:10]} 73. Rf6 {[%clk 0:00:04]}  Rg5+ {[%clk 0:00:10]} 74. Kh4 {[%clk 0:00:05]}  Rb5 {[%clk 0:00:09]} 75. Rf7 {[%clk 0:00:05]}  Rb6 {[%clk 0:00:09]} 76. Rh7 {[%clk 0:00:04]}  Rb5 {[%clk 0:00:09]} 77. Rh8 {[%clk 0:00:04]}  Ra5 {[%clk 0:00:08]} 78. Rh7 {[%clk 0:00:04]}  Ra2 {[%clk 0:00:08]} 79. Kh5 {[%clk 0:00:04]}  Ra6 {[%clk 0:00:08]} 80. Rh8 {[%clk 0:00:04]}  Kg3 {[%clk 0:00:08]} 81. Rg8+ {[%clk 0:00:04]}  Kh3 {[%clk 0:00:08]} 82. Rg7 {[%clk 0:00:03]}  Rb6 {[%clk 0:00:08]} 83. Rg6 {[%clk 0:00:03]}  Rb5+ {[%clk 0:00:04]} 0-1


[Site "https://www.chess.com"]

[Event "Titled Tuesday Blitz February 14 Early 2023"]
[White "Bilych, Olexiy"]
[Black "Petukhov, Dmitry"]
[WhiteFideId "14156504"]
[BlackFideId "4142748"]
[WhiteElo "2441"]
[BlackElo "2350"]
[Result "1-0"]
[Round "08"]
[TimeControl "180+2"]
[Date "2023.02.14"]
[WhiteClock "0:00:07"]
[BlackClock "0:00:14"]

1. d4 {[%clk 0:02:56]}  Nf6 {[%clk 0:02:59]} 2. c4 {[%clk 0:02:55]}  g6 {[%clk 0:02:59]} 3. Nc3 {[%clk 0:02:55]}  d5 {[%clk 0:03:00]} 4. Qb3 {[%clk 0:02:52]}  dxc4 {[%clk 0:02:59]} 5. Qxc4 {[%clk 0:02:53]}  a6 {[%clk 0:02:58]} 6. Bf4 {[%clk 0:02:47]}  b5 {[%clk 0:02:51]} 7. Qxc7 {[%clk 0:02:39]}  Qxc7 {[%clk 0:02:52]} 8. Bxc7 {[%clk 0:02:39]}  Nc6 {[%clk 0:02:51]} 9. e3 {[%clk 0:02:13]}  Bf5 {[%clk 0:02:44]} 10. Rc1 {[%clk 0:02:09]}  Rc8 {[%clk 0:02:39]} 11. Bg3 {[%clk 0:02:06]}  Nb4 {[%clk 0:02:13]} 12. Nf3 {[%clk 0:01:43]}  Bh6 {[%clk 0:01:57]} 13. Be2 {[%clk 0:01:34]}  Nd3+ {[%clk 0:01:42]} 14. Bxd3 {[%clk 0:01:32]}  Bxd3 {[%clk 0:01:43]} 15. Ne5 {[%clk 0:01:30]}  Bf5 {[%clk 0:01:35]} 16. O-O {[%clk 0:01:28]}  O-O {[%clk 0:01:27]} 17. a3 {[%clk 0:01:26]}  Rfd8 {[%clk 0:01:21]} 18. Rfe1 {[%clk 0:01:23]}  Ne4 {[%clk 0:01:17]} 19. Nxe4 {[%clk 0:01:17]}  Bxe4 {[%clk 0:01:18]} 20. Nf3 {[%clk 0:01:04]}  Kg7 {[%clk 0:01:14]} 21. Nd2 {[%clk 0:01:03]}  Bd5 {[%clk 0:01:11]} 22. Nb1 {[%clk 0:00:53]}  f6 {[%clk 0:01:03]} 23. Nc3 {[%clk 0:00:52]}  Bf7 {[%clk 0:01:03]} 24. f3 {[%clk 0:00:45]}  a5 {[%clk 0:00:51]} 25. Bf2 {[%clk 0:00:45]}  b4 {[%clk 0:00:51]} 26. axb4 {[%clk 0:00:45]}  axb4 {[%clk 0:00:51]} 27. Ne4 {[%clk 0:00:39]}  Rxc1 {[%clk 0:00:50]} 28. Rxc1 {[%clk 0:00:40]}  Rxd4 {[%clk 0:00:50]} 29. Kf1 {[%clk 0:00:24]}  f5 {[%clk 0:00:38]} 30. Nc5 {[%clk 0:00:16]}  Rc4 {[%clk 0:00:36]} 31. Rxc4 {[%clk 0:00:15]}  Bxc4+ {[%clk 0:00:37]} 32. Ke1 {[%clk 0:00:15]}  Kf7 {[%clk 0:00:36]} 33. b3 {[%clk 0:00:13]}  Bd5 {[%clk 0:00:31]} 34. Ke2 {[%clk 0:00:12]}  Bc6 {[%clk 0:00:26]} 35. Be1 {[%clk 0:00:10]}  Bb5+ {[%clk 0:00:22]} 36. Kf2 {[%clk 0:00:10]}  Bf8 {[%clk 0:00:22]} 37. Bxb4 {[%clk 0:00:07]}  e5 {[%clk 0:00:23]} 38. e4 {[%clk 0:00:07]}  fxe4 {[%clk 0:00:20]} 39. fxe4 {[%clk 0:00:07]}  Bc6 {[%clk 0:00:19]} 40. Ke3 {[%clk 0:00:07]}  Be7 {[%clk 0:00:18]} 41. Kd3 {[%clk 0:00:07]}  Bd6 {[%clk 0:00:18]} 42. g3 {[%clk 0:00:06]}  Bb5+ {[%clk 0:00:18]} 43. Kc3 {[%clk 0:00:06]}  Bc6 {[%clk 0:00:15]} 44. Nd3 {[%clk 0:00:06]}  Bc7 {[%clk 0:00:15]} 45. Nc5 {[%clk 0:00:04]}  Bb6 {[%clk 0:00:15]} 46. Nd3 {[%clk 0:00:02]}  Ke6 {[%clk 0:00:14]} 47. Bc5 {[%clk 0:00:02]}  Bc7 {[%clk 0:00:13]} 48. Nf2 {[%clk 0:00:03]}  Bb5 {[%clk 0:00:13]} 49. Kb4 {[%clk 0:00:03]}  Bd8 {[%clk 0:00:13]} 50. Kxb5 {[%clk 0:00:03]}  Bg5 {[%clk 0:00:12]} 51. Kc4 {[%clk 0:00:04]}  h5 {[%clk 0:00:13]} 52. b4 {[%clk 0:00:04]}  h4 {[%clk 0:00:14]} 53. gxh4 {[%clk 0:00:04]}  Bxh4 {[%clk 0:00:14]} 54. Ng4 {[%clk 0:00:05]}  Bd8 {[%clk 0:00:14]} 55. h3 {[%clk 0:00:05]}  Kd7 {[%clk 0:00:14]} 56. b5 {[%clk 0:00:06]}  Ke6 {[%clk 0:00:14]} 57. b6 {[%clk 0:00:06]}  g5 {[%clk 0:00:13]} 58. b7 {[%clk 0:00:06]}  Bc7 {[%clk 0:00:14]} 59. Ba7 {[%clk 0:00:07]}  Kd7 {[%clk 0:00:14]} 60. Kd5 {[%clk 0:00:07]} 1-0


[Site "https://www.chess.com"]